bitfinex/quotes_ETHUSD_20251015
["timestamp","ask_amount","ask_price","bid_price","bid_amount"]
[1760559665505,1e-08,4001.5,4001.4,2.6259253]
[1760559668300,5.99368008,4001.5,4001.4,2.5011253]
[1760559668704,5.99368008,4001.5,4001.4,0.002]
[1760559669600,0.10050001,4001.5,4001.4,0.002]
[1760559669790,0.10050001,4001.5,4001.4,2.5011253]
[1760559670581,1e-08,4001.5,4001.4,2.5011253]
[1760559671191,0.10050001,4001.5,4001.4,2.5011253]
[1760559671518,0.10050001,4001.5,4001.4,0.002]
[1760559671727,0.22530001,4001.5,4001.4,0.002]
[1760559672309,0.22530001,4001.5,4001.4,2.5011253]
[1760559672528,1e-08,4001.5,4001.4,3.00115805]
[1760559672863,1e-08,4001.5,4001.4,3.46625805]
[1760559673724,1e-08,4001.5,4001.4,2.9662253]
[1760559673879,1e-08,4001.5,4001.4,2.5011253]
[1760559675525,0.09900001,4001.5,4001.4,2.5011253]
[1760559680725,1e-08,4001.5,4001.4,2.5011253]
[1760559682594,1e-08,4001.5,4001.4,2.9351253]
[1760559682801,1e-08,4001.5,4001.4,3.51350815]
[1760559683004,1e-08,4001.5,4001.4,2.5011253]
[1760559683611,1e-08,4001.5,4001.4,2.9351253]
[1760559684428,1e-08,4001.5,4001.4,2.5011253]
[1760559685623,1e-08,4001.5,4001.4,2.9351253]
[1760559697365,1e-08,4001.5,4001.4,2.96011655]
[1760559697662,1e-08,4001.5,4001.4,3.54099852]
[1760559698634,1e-08,4001.5,4001.4,3.51600727]
[1760559699371,1e-08,4001.5,4001.4,2.5011253]
[1760559700563,0.09900001,4001.5,4001.4,2.5011253]
[1760559702441,28.12961701,4001.5,4001.4,0.002]
[1760559706049,22.16300001,4001.5,4001.4,2.5011253]
[1760559706449,22.26200001,4001.5,4001.4,0.002]
[1760559708149,22.16300001,4001.5,4001.4,2.5011253]
[1760559708472,22.16300001,4001.5,4001.4,0.002]
[1760559709476,22.16300001,4001.5,4001.4,2.5011253]
[1760559709640,22.16300001,4001.5,4001.4,0.002]
[1760559710872,22.26200001,4001.5,4001.4,0.002]
[1760559713369,28.15593338,4001.5,4001.4,0.002]
[1760559713542,27.09894242,4001.5,4001.4,0.002]
[1760559715157,26.99994242,4001.5,4001.4,0.002]
[1760559717977,26.99994242,4001.5,4001.4,2.5011253]
[1760559718785,26.99994242,4001.5,4001.4,0.002]
[1760559722554,1e-08,4001.5,4001.4,2.9587253]
[1760559722779,1e-08,4001.5,4001.4,3.52665782]
[1760559723086,1e-08,4001.5,4001.4,2.9587253]
[1760559724804,1e-08,4001.5,4001.4,0.4596]
[1760559724952,1e-08,4001.5,4001.4,2.9587253]
[1760559728902,4.82894242,4002.0,4001.5,2.49906285]
[1760559729102,4.83694241,4001.8,4001.6,2.49898832]
[1760559729402,4.83694241,4001.8,4001.7,2.49893795]
[1760559729591,4.83694241,4001.8,4001.6,0.4576]
[1760559729791,4.83694241,4001.8,4001.4,0.002]
[1760559729792,28.030617,4001.7,4001.4,0.002]
[1760559729991,4.83694241,4001.5,4001.4,0.002]
[1760559731707,32.96725941,4001.5,4001.4,0.002]
[1760559732519,33.09205941,4001.5,4001.4,0.002]
[1760559732818,32.99235941,4001.5,4001.4,0.002]
[1760559733035,10.0,4002.1,4001.6,2.49898655]
[1760559733249,0.1248,4001.8,4001.4,2.50108424]
[1760559733544,0.1248,4001.8,4001.4,2.50110441]
[1760559733838,0.1248,4001.8,4001.4,0.002]
[1760559734040,0.1248,4001.8,4001.5,2.49905997]
[1760559734204,0.1248,4001.8,4001.4,0.4596]
[1760559734607,0.1248,4001.8,4001.4,2.95872326]
[1760559735143,0.1248,4001.8,4001.4,0.4596]
[1760559735441,28.030617,4001.5,4001.4,0.002]
[1760559736611,32.86755941,4001.5,4001.4,0.002]
[1760559737937,32.86755941,4001.5,4001.4,2.5011253]
[1760559738442,4.83694241,4001.5,4001.4,2.9587253]
[1760559738649,16.79694241,4001.5,4001.4,2.9587253]
[1760559738811,4.83694241,4001.5,4001.4,2.5011253]
[1760559739008,4.83694241,4001.5,4001.4,2.9587253]
[1760559742855,4.83694241,4001.5,4001.4,0.002]
[1760559743043,4.83794241,4001.5,4001.4,2.5011253]
[1760559743944,0.001,4001.5,4001.4,2.9412253]
[1760559744151,0.001,4001.5,4001.4,3.63221222]
[1760559746469,0.001,4001.5,4001.4,3.0660253]
[1760559749569,4.83794241,4001.5,4001.4,0.1268]
[1760559749865,4.83794241,4001.5,4001.4,0.002]
[1760559751834,4.83794241,4001.5,4001.4,2.5011253]
[1760559757882,4.83794241,4001.5,4001.4,0.002]
[1760559758294,4.83794241,4001.5,4001.4,2.5011253]
[1760559759586,0.001,4001.5,4001.4,2.5011253]
[1760559759787,0.001,4001.5,4001.4,3.0660253]
[1760559760690,0.001,4001.5,4001.4,0.1268]
[1760559760881,4.83794241,4001.5,4001.4,0.1268]
[1760559761287,0.001,4001.5,4001.4,2.6259253]
[1760559761586,0.001,4001.5,4001.4,0.1268]
[1760559763719,0.001,4001.5,4001.3,2.49916343]
[1760559764343,0.001,4001.5,4001.4,2.4991253]
[1760559765308,0.001,4001.5,4001.4,2.9392253]
[1760559772350,0.001,4001.5,4001.4,2.4991253]
[1760559772729,0.001,4001.5,4001.2,0.1248]
[1760559773043,0.001,4001.5,4001.4,2.4991253]
[1760559773452,0.001,4001.5,4001.3,2.49912633]
[1760559773631,0.001,4001.5,4001.4,2.4991253]
[1760559774031,0.001,4001.5,4001.3,2.49917026]
[1760559774633,0.001,4001.5,4001.4,2.4991253]
[1760559775232,0.001,4001.5,4001.4,2.9379253]
[1760559775732,0.001,4001.5,4001.4,2.4991253]
[1760559777945,0.001,4001.5,4001.3,2.50117354]
[1760559779052,0.001,4001.5,4001.4,2.4991253]
[1760559779365,0.001,4001.5,4001.3,2.5011784]
[1760559780631,0.001,4001.5,4001.3,0.002]
[1760559780836,0.1258,4001.5,4001.3,0.002]
[1760559781159,5.99339461,4001.4,4001.3,0.002]
[1760559781731,36.52313691,4001.4,4001.3,0.002]
[1760559782736,37.15673691,4001.4,4001.3,0.002]
[1760559782938,37.25697133,4001.4,4001.3,0.002]
[1760559783172,37.15673691,4001.4,4001.3,0.002]
[1760559783682,35.36572557,4001.4,4001.3,0.002]
[1760559784033,35.36572557,4001.4,4000.9,0.002]
[1760559784034,30.52999215,4001.0,4000.9,0.002]
[1760559784254,32.13180027,4001.0,4000.9,0.002]
[1760559784453,32.23300027,4001.0,4000.9,0.002]
[1760559784634,19.05818327,4001.0,4000.9,0.002]
[1760559785142,17.921,4001.0,4000.9,0.002]
[1760559785756,0.1248,4001.1,4001.0,2.49937515]
[1760559785983,0.1248,4001.1,4001.0,2.93847515]
[1760559786182,32.13180027,4001.4,4000.9,0.002]
[1760559786381,27.241,4001.2,4000.9,0.002]
[1760559786748,28.030617,4001.2,4000.9,0.002]
[1760559787681,34.63117542,4001.0,4000.9,0.002]
[1760559787977,35.84396434,4001.0,4000.9,0.002]
[1760559788285,35.94516434,4001.0,4000.9,0.002]
[1760559788672,7.91454734,4001.0,4000.9,0.002]
[1760559788872,45.94516434,4001.0,4000.9,0.002]
[1760559789078,35.66645507,4001.0,4000.9,0.002]
[1760559789450,37.39445507,4001.0,4000.9,0.002]
[1760559790484,37.67316434,4001.0,4000.9,0.002]
[1760559791846,37.57196434,4001.0,4000.9,0.002]
[1760559792093,37.67316434,4001.0,4000.9,0.002]
[1760559792257,37.39445507,4001.0,4000.9,0.002]
[1760559793224,18.353,4001.0,4000.9,0.002]
[1760559793389,20.85237515,4001.0,4000.9,0.002]
[1760559793590,18.353,4001.0,4000.9,0.002]
[1760559793807,29.758617,4001.0,4000.9,0.002]
[1760559794782,0.1248,4001.0,4000.9,0.4411]
[1760559795109,18.4028,4001.0,4000.9,0.4411]
[1760559795701,18.4028,4001.0,4000.9,0.002]
[1760559795902,28.155417,4001.0,4000.9,0.002]
[1760559796922,0.1248,4001.0,4000.9,0.002]
[1760559797209,28.155417,4001.0,4000.9,0.002]
[1760559801242,2.49950009,4000.8,4000.1,0.002]
[1760559801425,33.063192,4000.2,4000.1,0.002]
[1760559801747,36.99358778,3999.7,3999.4,0.002]
[1760559802045,37.72915087,3999.7,3999.4,0.002]
[1760559802402,37.83065087,3999.7,3999.4,0.002]
[1760559804141,9.80003387,3999.7,3999.4,0.002]
[1760559804303,37.83065087,3999.7,3999.4,0.002]
[1760559805124,9.69853387,3999.7,3999.4,0.002]
[1760559805432,37.72915087,3999.7,3999.4,0.002]
[1760559806004,9.69853387,3999.7,3999.4,0.002]
[1760559806205,37.72915087,3999.7,3999.4,0.002]
[1760559807041,9.69853387,3999.7,3999.4,0.002]
[1760559807211,37.72915087,3999.7,3999.4,0.002]
[1760559808118,37.83065087,3999.7,3999.4,0.002]
[1760559809070,9.80003387,3999.7,3999.4,0.002]
[1760559809271,37.83065087,3999.7,3999.4,0.002]
[1760559810087,0.6336,3999.4,3999.0,0.002]
[1760559810289,3.13416262,3999.1,3999.0,0.002]
[1760559810438,31.90410138,3999.1,3999.0,0.002]
[1760559812874,31.90410138,3999.1,3998.6,0.002]
[1760559812875,32.89302976,3998.7,3998.6,0.002]
[1760559813046,32.89327995,3998.3,3998.2,0.002]
[1760559813246,33.63260171,3998.3,3998.2,0.002]
[1760559813648,34.06980171,3998.3,3998.2,0.002]
[1760559813877,34.17110171,3998.3,3998.2,0.002]
[1760559814575,2.50175742,3997.2,3997.0,0.2281]
[1760559814776,28.030617,3997.4,3997.3,0.2261]
[1760559815082,28.030617,3997.4,3997.3,0.6633]
[1760559815083,30.53224305,3997.4,3997.3,0.6633]
[1760559815373,2.50162605,3997.4,3997.3,0.6633]
[1760559815581,30.53224305,3997.4,3997.3,0.6633]
[1760559815995,34.63342632,3997.4,3997.3,0.6633]
[1760559816693,34.63342632,3997.4,3997.3,0.2261]
[1760559816873,35.00622298,3997.4,3997.3,0.2261]
[1760559817070,35.00622298,3997.4,3997.3,0.6633]
[1760559821664,35.00622298,3997.4,3997.3,0.2261]
[1760559821865,35.00622298,3997.4,3997.0,0.6653]
[1760559821866,2.50181381,3997.1,3997.0,0.6653]
[1760559822181,2.50181381,3997.1,3995.6,2.50273652]
[1760559822182,28.030617,3996.8,3994.2,0.2261]
[1760559822380,4.10118327,3994.3,3994.2,0.2261]
[1760559823114,4.32728327,3994.3,3994.2,0.2261]
[1760559824097,4.32728327,3994.3,3994.2,0.6633]
[1760559828214,1.728,3994.8,3994.2,0.6633]
[1760559828406,4.10118327,3994.7,3994.2,0.2261]
[1760559828706,4.10118327,3994.7,3994.3,0.4372]
[1760559828880,4.10118327,3994.7,3994.4,0.4372]
[1760559829080,2.50338264,3994.6,3994.2,0.2261]
[1760559829280,2.50338264,3994.6,3994.3,0.4372]
[1760559829693,2.5035049,3994.4,3994.0,0.2261]
[1760559829887,28.030617,3994.2,3993.6,0.2261]
[1760559830089,4.10118327,3993.7,3993.3,0.2261]
[1760559830410,4.10118327,3993.7,3993.0,2.50633133]
[1760559830411,40.53468611,3993.5,3993.0,0.002]
[1760559830613,28.40341366,3993.5,3993.0,0.002]
[1760559830914,30.90748277,3993.5,3993.0,0.002]
[1760559831129,22.31179666,3993.5,3993.2,0.6783]
[1760559831718,22.31179666,3993.5,3993.0,0.002]
[1760559832080,28.40341366,3993.5,3993.0,0.002]
[1760559832922,28.40341366,3993.5,3993.0,2.50637431]
[1760559833291,28.40341366,3993.5,3993.0,0.002]
[1760559834683,28.40341366,3993.5,3993.0,2.50636065]
[1760559835522,10.67979666,3993.5,3993.1,2.50430494]
[1760559836328,28.40341366,3993.5,3993.1,2.50430494]
[1760559837191,27.25379666,3993.5,3993.3,0.225]
[1760559837393,0.1248,3993.6,3993.4,0.4575]
[1760559837618,0.1248,3993.6,3993.5,0.4555]
[1760559837821,25.2528,3993.6,3993.5,0.4555]
[1760559838387,8.8098,3993.6,3993.5,0.4555]
[1760559838583,0.1248,3993.6,3993.5,0.4555]
[1760559840791,0.1248,3993.6,3993.5,2.95956911]
[1760559841196,0.1248,3993.6,3993.5,0.4555]
[1760559841510,0.1248,3993.6,3993.4,0.002]
[1760559841916,0.1248,3993.6,3993.4,0.4575]
[1760559842097,0.1248,3993.6,3993.4,0.002]
[1760559842298,1.728,3993.9,3993.5,2.95956911]
[1760559842498,0.1248,3993.8,3993.6,0.4555]
[1760559843933,0.1248,3993.8,3993.6,2.95950117]
[1760559844097,0.1248,3993.8,3993.6,0.4555]
[1760559845633,0.1248,3993.8,3993.4,0.002]
[1760559845934,0.1248,3993.8,3993.5,0.4555]
[1760559846703,0.1248,3993.8,3993.5,2.50404469]
[1760559847036,0.1248,3993.8,3993.6,0.4555]
[1760559847936,0.1248,3993.8,3993.4,2.9616272]
[1760559848138,0.1248,3993.8,3993.5,0.4555]
[1760559848640,0.1248,3993.8,3993.5,2.9595553]
[1760559849340,0.1248,3993.8,3993.5,0.4555]
[1760559849754,0.1248,3993.8,3993.6,2.95946342]
[1760559849934,0.1248,3993.8,3993.6,2.95948503]
[1760559850133,0.1248,3993.8,3993.6,0.4555]
[1760559850339,2.62868484,3993.8,3993.4,0.002]
[1760559850925,0.1248,3993.8,3993.4,0.002]
[1760559851126,0.1248,3993.8,3993.4,2.5061267]
[1760559852053,0.1248,3993.8,3993.4,0.4575]
[1760559852550,0.1248,3993.8,3993.4,2.96162299]
[1760559852750,0.1248,3993.8,3993.5,2.5040647]
[1760559852952,0.1248,3993.8,3993.5,2.9595647]
[1760559853155,0.1248,3993.8,3993.6,2.50399454]
[1760559853331,3.42976156,3993.7,3993.5,2.95956821]
[1760559853538,3.42976156,3993.7,3993.6,0.4555]
[1760559854491,3.42976156,3993.7,3993.4,0.002]
[1760559854965,3.42976156,3993.7,3993.4,0.4575]
[1760559855672,3.42976156,3993.7,3993.4,2.96161526]
[1760559855833,3.42976156,3993.7,3993.4,0.002]
[1760559856034,3.42976156,3993.7,3993.5,0.4555]
[1760559858562,0.1248,3993.8,3993.5,2.95956532]
[1760559859061,0.1248,3993.8,3993.5,2.95955693]
[1760559859661,0.1248,3993.8,3993.5,0.4555]
[1760559859964,0.1248,3993.8,3993.4,0.002]
[1760559860136,0.1248,3993.8,3993.4,0.4575]
[1760559861432,2.62874143,3993.8,3993.4,0.4575]
[1760559861762,3.42976156,3993.5,3993.4,0.002]
[1760559862134,3.68766156,3993.5,3993.4,0.002]
[1760559863063,0.1248,3993.6,3993.4,0.002]
[1760559863770,0.1248,3993.6,3993.5,0.4298]
[1760559864363,0.1248,3993.8,3993.5,2.93386911]
[1760559864567,0.1248,3993.8,3993.6,0.4298]
[1760559866049,0.1248,3993.8,3993.4,0.002]
[1760559866253,0.1248,3993.8,3993.4,0.4318]
[1760559866779,0.1248,3993.8,3993.4,0.002]
[1760559866971,0.1248,3993.8,3993.5,2.93384386]
[1760559867278,0.1248,3993.8,3993.5,2.93385416]
[1760559867879,0.1248,3993.8,3993.6,0.4298]
[1760559868085,0.1248,3993.8,3993.5,0.4298]
[1760559868581,0.1248,3993.8,3993.6,2.50396854]
[1760559868780,28.030617,3994.5,3993.7,0.4298]
[1760559868958,0.39260077,3994.8,3994.2,2.50363026]
[1760559869158,0.1248,3995.0,3994.3,0.81483567]
[1760559869392,4.83198399,3995.8,3994.4,3.8845966]
[1760559869591,28.030617,3995.5,3994.7,2.50326818]
[1760559869794,10.61749666,3995.4,3994.6,2.50336749]
[1760559869990,0.97992485,3995.4,3994.7,2.50329393]
[1760559870199,3.48280887,3995.4,3994.5,2.93318057]
[1760559870361,3.48280887,3995.4,3980.2,13.496043]
[1760559870362,5.93293628,3995.0,3994.0,2.93353719]
[1760559870685,5.93293628,3995.0,3993.4,3.43176156]
[1760559870686,28.030617,3994.3,3993.7,2.50393133]
[1760559870906,0.83929666,3994.2,3993.4,0.002]
[1760559871094,28.030617,3994.1,3993.4,0.002]
[1760559871675,28.030617,3994.1,3993.7,2.50393714]
[1760559872403,19.222,3994.1,3993.5,2.50403471]
[1760559872616,19.222,3994.1,3993.7,2.5039139]
[1760559872917,2.09042819,3994.6,3993.9,2.50376327]
[1760559873215,27.584,3994.5,3993.9,2.50376327]
[1760559873510,12.3,3994.5,3994.0,2.50375221]
[1760559873716,12.7665,3994.5,3994.0,2.50375221]
[1760559874012,8.047,3995.1,3994.1,0.665]
[1760559874198,1.728,3994.9,3994.2,0.4298]
[1760559874367,1.728,3995.0,3994.2,2.93339905]
[1760559874574,1.728,3995.0,3994.4,2.50344385]
[1760559874791,0.4596,3995.2,3994.2,0.4298]
[1760559874998,1.728,3995.0,3994.6,2.5033352]
[1760559875201,2.56039666,3995.2,3994.3,2.50352175]
[1760559875408,1.728,3995.0,3994.6,2.50336968]
[1760559875613,1.728,3994.9,3994.2,2.93338012]
[1760559875778,1.728,3994.8,3994.1,0.2352]
[1760559875986,28.030617,3994.7,3994.0,2.50371728]
[1760559876202,28.030617,3994.7,3994.1,2.50363905]
[1760559876203,28.39304519,3994.6,3994.1,2.50363905]
[1760559876404,28.030617,3994.5,3994.1,2.50363905]
[1760559876875,28.030617,3994.5,3994.2,2.50361407]
[1760559877574,11.26,3994.5,3994.2,2.50361407]
[1760559877770,5.516,3994.5,3994.2,2.50361407]
[1760559878471,1.856,3994.8,3994.2,0.4298]
[1760559878676,1.728,3994.8,3994.4,2.50345672]
[1760559879488,0.1248,3994.6,3994.4,2.50345672]
[1760559880027,0.1248,3994.6,3994.5,2.50344223]
[1760559880430,0.1248,3994.6,3994.4,2.5034975]
[1760559880734,0.1248,3994.6,3994.3,2.96506387]
[1760559880898,0.1248,3994.6,3994.1,2.73888267]
[1760559881093,0.4899,3994.6,3994.1,2.50368267]
[1760559881298,0.3651,3994.5,3994.1,2.50368267]
[1760559881511,0.3651,3994.4,3994.1,2.50368267]
[1760559881711,0.3651,3994.4,3994.0,2.62854559]
[1760559881908,13.988,3994.0,3993.4,2.50610667]
[1760559882113,28.030617,3994.0,3993.6,2.50396133]
[1760559882299,28.030617,3994.0,3993.7,2.50393473]
[1760559882933,28.030617,3994.0,3993.6,2.50399721]
[1760559883336,28.030617,3994.0,3993.7,2.50389295]
[1760559883628,28.030617,3994.0,3993.4,0.1268]
[1760559883629,28.030617,3994.0,3993.8,2.5038681]
[1760559883814,0.1248,3994.1,3994.0,2.50375563]
[1760559884021,0.1248,3994.5,3994.2,2.50358728]
[1760559884628,0.1248,3994.5,3994.1,2.5036709]
[1760559885033,0.1248,3994.5,3994.2,2.50361679]
[1760559885233,0.1248,3994.5,3994.3,2.50356536]
[1760559886509,0.1248,3994.5,3994.3,2.50354619]
[1760559890158,0.1248,3994.5,3994.4,2.5035049]
[1760559890334,0.1248,3994.5,3994.4,2.9650049]
[1760559891058,0.1248,3994.5,3994.2,0.2318]
[1760559891255,0.1248,3994.5,3994.2,0.6863]
[1760559891561,0.1248,3994.5,3994.4,2.5035049]
[1760559892258,0.1248,3994.5,3994.2,3.18992159]
[1760559892559,0.1248,3994.5,3994.4,2.5035049]
[1760559894061,0.1248,3994.8,3994.5,2.50339292]
[1760559894557,0.1248,3994.8,3994.6,2.50333341]
[1760559895357,0.1248,3994.8,3994.6,2.95783341]
[1760559895536,0.1248,3994.8,3994.6,2.50333341]
[1760559895735,0.1248,3994.8,3994.5,2.50340829]
[1760559896069,0.1248,3994.8,3994.2,3.08291823]
[1760559896635,0.1248,3994.8,3994.7,2.50331689]
[1760559898145,0.1248,3994.8,3994.7,2.96821689]
[1760559898358,0.1248,3995.3,3995.2,2.50295218]
[1760559898557,0.1248,3995.3,3995.1,2.71754577]
[1760559898734,0.1248,3995.3,3995.1,2.50304577]
[1760559898939,0.1248,3995.3,3995.2,2.5030036]
[1760559899369,0.1248,3995.3,3995.1,2.50305348]
[1760559899569,14.59296882,3995.8,3995.2,2.5030036]
[1760559899570,25.398,3995.7,3995.2,2.5030036]
[1760559899868,0.1248,3995.5,3995.3,2.50292781]
[1760559900045,0.1248,3995.5,3995.0,0.4649]
[1760559900367,0.1248,3995.5,3995.3,2.50292402]
[1760559900877,0.1248,3995.5,3995.4,2.50287831]
[1760559901176,0.1248,3995.5,3995.3,2.50292634]
[1760559901674,0.1248,3995.5,3994.8,2.84253635]
[1760559901869,0.1248,3995.5,3995.2,2.50294882]
[1760559902048,0.1248,3995.5,3994.9,2.96808977]
[1760559902253,0.1248,3995.5,3995.0,2.50310523]
[1760559902573,0.1248,3995.5,3994.9,0.4649]
[1760559902748,0.1248,3995.5,3995.0,2.50308974]
[1760559902953,0.1248,3995.5,3995.1,2.50306196]
[1760559904874,1.728,3995.3,3994.9,2.5031915]
[1760559905173,0.3623,3995.3,3994.9,2.5031915]
[1760559905350,0.3623,3995.3,3995.0,2.50311257]
[1760559905557,28.030617,3995.3,3995.0,2.50311257]
[1760559906280,28.030617,3995.3,3995.0,2.50310825]
[1760559906663,28.392917,3995.3,3995.0,2.50310825]
[1760559906878,0.3623,3995.3,3995.0,2.50310825]
[1760559907255,0.73522485,3995.4,3995.0,2.50310825]
[1760559907457,29.758617,3995.3,3995.2,2.5030036]
[1760559907656,1.728,3995.3,3995.2,2.5030036]
[1760559907965,1.728,3995.3,3995.2,2.9679036]
[1760559908166,0.1248,3995.5,3995.4,2.50287831]
[1760559908380,10.73522485,3995.9,3995.2,2.9679036]
[1760559908381,28.030617,3995.8,3995.5,2.50281044]
[1760559908679,0.1248,3995.8,3995.4,2.50285541]
[1760559909173,1.8528,3995.8,3995.4,2.50285541]
[1760559910058,0.1248,3995.8,3995.7,2.50269039]
[1760559910254,0.1248,3995.8,3995.6,2.50273024]
[1760559910660,0.1248,3995.8,3995.6,2.96763024]
[1760559910871,0.1248,3995.8,3995.7,2.50269039]
[1760559911070,0.1248,3995.8,3995.6,0.4649]
[1760559911251,0.1248,3995.8,3995.4,2.50283635]
[1760559911448,0.5681,3995.8,3995.2,2.5030036]
[1760559911666,28.030617,3995.7,3994.8,0.2145]
[1760559911857,0.1248,3995.5,3995.1,2.50302281]
[1760559912277,0.1248,3995.5,3995.1,2.50305736]
[1760559912950,0.1248,3995.5,3994.8,0.3393]
[1760559913156,0.37279666,3995.7,3995.1,2.50305452]
[1760559913506,28.030617,3995.6,3995.1,2.50305038]
[1760559913894,28.030617,3995.6,3995.3,2.50293388]
[1760559914063,6.541,3995.6,3995.4,2.50284615]
[1760559914253,2.769,3995.6,3995.4,2.96774615]
[1760559914455,0.37279666,3995.7,3995.4,2.96774615]
[1760559914889,1.729,3996.2,3995.3,0.0250294]
[1760559915193,2.33865539,3996.2,3995.6,2.50271405]
[1760559915377,2.33865539,3996.2,3995.7,2.50268708]
[1760559915575,1.728,3996.0,3995.7,2.50268708]
[1760559915969,0.23690883,3996.1,3995.5,0.4649]
[1760559916199,1.96490883,3996.0,3995.5,2.96771353]
[1760559916395,1.728,3996.0,3995.5,2.96771353]
[1760559916606,0.23688378,3996.1,3995.5,2.96771353]
[1760559916912,1.728,3995.7,3995.1,2.50301608]
[1760559917067,0.58709666,3995.6,3995.0,0.002]
[1760559917265,0.94952485,3995.6,3995.0,0.002]
[1760559917494,0.94952485,3995.6,3995.1,2.50306071]
[1760559917693,0.2311,3995.5,3995.1,2.50306071]
[1760559918581,0.94952485,3995.6,3995.1,2.50306071]
[1760559918900,0.2311,3995.5,3995.1,2.50306071]
[1760559919106,0.2311,3995.5,3995.2,2.50295501]
[1760559919900,0.94952485,3995.6,3995.3,2.50291986]
[1760559920300,0.94952485,3995.6,3995.2,2.50298413]
[1760559921097,2.67752485,3995.6,3995.2,2.50298413]
[1760559921402,1.18062485,3995.6,3995.2,2.50298413]
[1760559923196,0.1248,3995.5,3995.2,2.50298413]
[1760559923685,0.1248,3995.5,3995.1,2.50306015]
[1760559924091,0.3559,3995.5,3995.1,2.50306015]
[1760559924607,0.1248,3995.5,3995.1,2.50306015]
[1760559925470,28.030617,3995.4,3995.0,0.002]
[1760559925671,28.030617,3995.3,3995.0,0.002]
[1760559925872,28.030617,3995.1,3995.0,0.002]
[1760559926179,37.10936536,3995.1,3995.0,0.002]
[1760559926501,38.21129994,3995.1,3995.0,0.002]
[1760559932585,38.86554073,3995.1,3995.0,0.002]
[1760559935692,38.96594851,3995.1,3995.0,0.002]
[1760559938217,10.93533151,3995.1,3995.0,0.002]
[1760559938410,38.96594851,3995.1,3995.0,0.002]
[1760559939237,10.93533151,3995.1,3995.0,0.002]
[1760559939527,38.96594851,3995.1,3995.0,0.002]
[1760559941530,38.73484851,3995.1,3995.0,0.002]
[1760559941725,38.96594851,3995.1,3995.0,0.002]
[1760559942140,38.73484851,3995.1,3995.0,0.002]
[1760559942463,38.08060772,3995.1,3995.0,0.002]
[1760559942744,37.98019994,3995.1,3995.0,0.4357]
[1760559942922,37.60740328,3995.1,3995.0,0.4357]
[1760559943420,36.97377822,3995.1,3995.0,0.4357]
[1760559944134,37.34657488,3995.1,3995.0,0.4357]
[1760559944444,37.34652475,3995.1,3995.0,0.4357]
[1760559945204,37.34652475,3995.1,3995.0,0.002]
[1760559948139,37.34652475,3995.1,3995.0,0.4357]
[1760559949046,37.34652475,3995.1,3995.0,0.002]
[1760559950050,37.34652475,3995.1,3995.0,0.4357]
[1760559950862,28.76584185,3995.1,3995.0,0.4623]
[1760559951154,9.99,3995.3,3995.0,0.4623]
[1760559951353,9.99,3995.3,3995.2,0.2305]
[1760559951649,10.539,3995.3,3995.2,0.6908]
[1760559952040,13.41473761,3995.3,3995.0,0.002]
[1760559952239,36.61127484,3995.1,3995.0,0.002]
[1760559952432,37.34649969,3995.1,3995.0,0.002]
[1760559952745,37.57599969,3995.1,3995.0,0.002]
[1760559953048,38.20959969,3995.1,3995.0,0.002]
[1760559953930,37.98009969,3995.1,3995.0,0.002]
[1760559954550,38.20959969,3995.1,3995.0,0.002]
[1760559956559,10.17898269,3995.1,3995.0,0.002]
[1760559956749,38.20959969,3995.1,3995.0,0.002]
[1760559957350,37.29637875,3995.1,3995.0,0.002]
[1760559957931,37.52587875,3995.1,3995.0,0.002]
[1760559958591,37.29637875,3995.1,3995.0,0.002]
[1760559960963,37.52587875,3995.1,3995.0,0.002]
[1760559961755,37.29637875,3995.1,3995.0,0.002]
[1760559962652,9.26576175,3995.1,3995.0,0.002]
[1760559962846,37.29637875,3995.1,3995.0,0.002]
[1760559965064,37.52587875,3995.1,3995.0,0.002]
[1760559967467,31.40476847,3994.7,3994.6,0.002]
[1760559967771,37.29672964,3994.7,3994.6,0.002]
[1760559967938,37.52862964,3994.7,3994.6,0.002]
[1760559968371,37.29672964,3994.7,3994.6,0.002]
[1760559968666,37.05949506,3994.7,3994.6,0.4568]
[1760559968849,37.29672964,3994.7,3994.6,0.4568]
[1760559969369,37.29672964,3994.7,3994.6,0.002]
[1760559970870,9.26611264,3994.7,3994.6,0.002]
[1760559971079,37.29672964,3994.7,3994.6,0.4568]
[1760559971375,37.29672964,3994.7,3994.6,0.002]
[1760559973271,37.29672964,3994.7,3994.6,0.4568]
[1760559973454,33.63075874,3994.7,3994.6,0.4568]
[1760559973655,33.86799332,3994.7,3994.6,0.4568]
[1760559974958,43.86799332,3994.7,3994.6,0.4568]
[1760559975175,33.86799332,3994.7,3994.6,0.4568]
[1760559976144,33.23439332,3994.7,3994.6,0.4568]
[1760559976770,33.23439332,3994.7,3994.6,0.002]
[1760559976975,5.20377632,3994.7,3994.6,0.002]
[1760559977271,33.23439332,3994.7,3994.6,0.002]
[1760559979357,33.23439332,3994.7,3994.6,0.4568]
[1760559979759,33.23439332,3994.7,3994.6,0.002]
[1760559980660,33.86799332,3994.7,3994.6,0.002]
[1760559980985,34.09979332,3994.7,3994.6,0.002]
[1760559981188,44.09979332,3994.7,3994.6,0.002]
[1760559981365,34.09979332,3994.7,3994.6,0.002]
[1760559982161,0.6336,3994.2,3994.0,1e-08]
[1760559982383,0.6336,3994.2,3992.7,0.4329]
[1760559982384,31.40592192,3993.5,3992.7,0.4329]
[1760559982587,3.37555576,3993.1,3991.9,0.4329]
[1760559982885,36.56328541,3992.7,3991.9,0.4329]
[1760559983085,35.57051026,3992.7,3991.9,0.4329]
[1760559983262,31.16878784,3992.7,3991.9,0.2198]
[1760559983461,28.030617,3992.9,3992.6,0.4349]
[1760559983675,28.030617,3993.1,3992.6,0.4349]
[1760559983855,0.23761072,3993.2,3992.6,0.4349]
[1760559983856,28.030617,3993.2,3993.0,0.2198]